bitfinex/quotes_ETHUSD_20220311
["timestamp","ask_amount","ask_price","bid_price","bid_amount"]
[1646971654330,0.36075813,2551.3,2550.8,18.0]
[1646971654531,0.36075813,2551.3,2551.0,0.296]
[1646971654930,0.3,2551.3,2550.9,2.84470478]
[1646971655330,0.85394054,2551.4,2550.9,2.84470478]
[1646971655331,1.15394054,2551.4,2550.9,2.84470478]
[1646971656391,1.15394054,2551.4,2550.9,1.86500848]
[1646971656590,1.15394054,2551.4,2550.9,0.88530848]
[1646971657398,1.15250906,2551.4,2550.9,3.5]
[1646971657595,1.15250906,2551.4,2550.8,3.5]
[1646971658394,1.15250906,2551.4,2550.7,20.23747555]
[1646971658594,1.67686079,2551.3,2551.0,0.296]
[1646971658801,2.14130035,2551.2,2551.0,0.296]
[1646971658996,2.07877862,2551.1,2550.7,19.169]
[1646971659230,0.05617712,2551.0,2550.7,19.169]
[1646971659432,0.462,2550.9,2550.7,19.169]
[1646971659630,0.462,2550.9,2550.7,18.0]
[1646971659831,0.762,2550.9,2550.7,18.0]
[1646971660031,1.74279337,2550.9,2550.7,18.0]
[1646971660229,1.74279337,2550.9,2550.6,0.9976]
[1646971663289,0.06141721,2550.8,2550.6,0.9976]
[1646971663486,0.06141721,2550.8,2550.5,0.9032]
[1646971663487,0.462,2550.7,2550.5,0.9032]
[1646971663690,0.05044865,2550.6,2550.4,7.33]
[1646971663895,0.462,2550.5,2550.4,7.33]
[1646971664093,1.43867131,2550.5,2550.4,7.33]
[1646971664287,1.73867131,2550.5,2550.4,7.33]
[1646971664689,0.462,2550.5,2550.4,7.33]
[1646971665090,0.462,2550.5,2550.4,8.33]
[1646971665293,0.462,2550.5,2550.4,7.33]
[1646971666191,1.83028039,2550.5,2550.4,7.33]
[1646971666391,17.42864817,2550.5,2550.4,7.33]
[1646971666596,18.40892817,2550.5,2550.0,361.36858567]
[1646971667631,18.40892817,2550.5,2550.0,360.37098567]
[1646971669435,3.5,2550.4,2550.0,360.37098567]
[1646971669635,0.462,2550.3,2550.0,360.37098567]
[1646971669836,0.762,2550.3,2550.0,360.37098567]
[1646971670034,0.762,2550.3,2550.0,359.23938567]
[1646971671384,3.5,2550.2,2550.0,359.23938567]
[1646971671580,0.462,2550.1,2550.0,359.23938567]
[1646971671787,0.762,2550.1,2550.0,359.23938567]
[1646971672186,1.77228493,2550.1,2550.0,359.23938567]
[1646971672584,0.762,2550.1,2550.0,359.23938567]
[1646971673585,4.262,2550.1,2550.0,359.23938567]
[1646971673785,1.7809883,2550.1,2550.0,359.23938567]
[1646971674629,0.762,2550.1,2550.0,359.23938567]
[1646971680278,0.462,2550.1,2550.0,359.23938567]
[1646971681739,0.762,2550.1,2550.0,359.23938567]
[1646971684146,0.762,2550.1,2550.0,360.18558543]
[1646971685346,0.762,2550.1,2550.0,359.23938567]
[1646971692148,0.76052332,2550.1,2550.0,359.23938567]
[1646971708981,0.29852332,2550.1,2550.0,359.23938567]
[1646971709183,0.3,2550.2,2550.0,359.23938567]
[1646971711391,0.462,2550.1,2550.0,359.23938567]
[1646971711590,1.44249,2550.1,2550.0,359.23938567]
[1646971714432,1.50118646,2550.1,2550.0,359.23938567]
[1646971715877,2.49976006,2550.1,2550.0,359.23938567]
[1646971716681,9.09229074,2550.1,2550.0,359.23938567]
[1646971716884,10.28829074,2550.1,2550.0,359.23938567]
[1646971717182,11.28829074,2550.1,2550.0,353.35451567]
[1646971717581,11.28829074,2550.1,2550.0,347.46931567]
[1646971718183,13.24994584,2550.1,2550.0,341.58402567]
[1646971718383,13.19124938,2550.1,2550.0,341.58402567]
[1646971718584,15.22948365,2550.1,2550.0,341.58402567]
[1646971718793,15.52948365,2550.1,2550.0,335.69854567]
[1646971719428,15.52948365,2550.1,2550.0,329.81302567]
[1646971719830,15.52948365,2550.1,2550.0,323.92789567]
[1646971720229,15.33348365,2550.1,2550.0,323.92789567]
[1646971724883,14.35265175,2550.1,2550.0,323.92789567]
[1646971725783,13.37182855,2550.1,2550.0,323.92789567]
[1646971726184,11.33359428,2550.1,2550.0,323.92789567]
[1646971726726,9.71599397,2550.1,2550.0,323.92789567]
[1646971727931,12.71599397,2550.1,2550.0,323.92789567]
[1646971728733,9.71599397,2550.1,2550.0,323.92789567]
[1646971728934,12.71599397,2550.1,2550.0,323.92789567]
[1646971729933,9.71599397,2550.1,2550.0,323.92789567]
[1646971730336,12.71599397,2550.1,2550.0,323.92789567]
[1646971730580,9.71599397,2550.1,2550.0,323.92789567]
[1646971731783,11.33377693,2550.1,2550.0,323.92789567]
[1646971733888,14.33377693,2550.1,2550.0,300.87932133]
[1646971734246,17.92893317,2550.1,2550.0,264.10220466]
[1646971734535,36.00420595,2550.1,2550.0,251.34706466]
[1646971734839,39.43121044,2550.1,2550.0,245.46003466]
[1646971735033,43.7434093,2550.1,2550.0,243.94950014]
[1646971735234,48.32167176,2550.1,2550.0,226.28943014]
[1646971735434,30.67685949,2550.1,2550.0,226.28943014]
[1646971735634,30.67685949,2550.1,2550.0,220.40385014]
[1646971735835,30.67685949,2550.1,2550.0,214.51814014]
[1646971736235,26.36466063,2550.1,2550.0,207.97903468]
[1646971736435,38.42466063,2550.1,2550.0,201.91670206]
[1646971736636,38.42466063,2550.1,2550.0,192.05569655]
[1646971736840,38.42466063,2550.1,2550.0,173.37550422]
[1646971736841,39.14753654,2550.1,2550.0,173.37550422]
[1646971737241,39.14753654,2550.1,2550.0,167.48867422]
[1646971737242,40.14753654,2550.1,2550.0,167.48867422]
[1646971737546,40.14753654,2550.1,2550.0,155.71512422]
[1646971737741,39.42466063,2550.1,2550.0,155.71512422]
[1646971737999,39.42466063,2550.1,2550.0,149.82885422]
[1646971738385,39.22866063,2550.1,2550.0,149.82885422]
[1646971738585,39.22866063,2550.1,2550.0,143.94275422]
[1646971738786,27.16866063,2550.1,2550.0,143.94275422]
[1646971739385,27.16866063,2550.1,2550.0,132.27564422]
[1646971739386,39.22866063,2550.1,2550.0,132.27564422]
[1646971739987,39.22866063,2550.1,2550.0,126.38941422]
[1646971740387,36.80165614,2550.1,2550.0,126.38941422]
[1646971740588,24.74165614,2550.1,2550.0,126.38941422]
[1646971740787,23.74165614,2550.1,2550.0,126.38941422]
[1646971740987,26.16876382,2550.1,2550.0,126.38941422]
[1646971741191,23.74165614,2550.1,2550.0,126.38941422]
[1646971741834,20.53356152,2550.1,2550.0,126.38941422]
[1646971743034,19.23356152,2550.1,2550.0,126.38941422]
[1646971743434,19.23356152,2550.1,2550.0,124.7362169]
[1646971743736,24.86886828,2550.1,2550.0,118.8499169]
[1646971744133,28.19455545,2550.1,2550.0,118.8499169]
[1646971744333,29.49455545,2550.1,2550.0,112.9636969]
[1646971744537,29.49447805,2550.1,2550.0,112.9636969]
[1646971744733,27.06734331,2550.1,2550.0,107.0775569]
[1646971744934,29.49446691,2550.1,2550.0,107.0775569]
[1646971745581,41.55446691,2550.1,2550.0,101.1913969]
[1646971746181,39.12734331,2550.1,2550.0,101.1913969]
[1646971746382,41.55444001,2550.1,2550.0,101.1913969]
[1646971746584,29.49444001,2550.1,2550.0,101.1913969]
[1646971746787,23.96269038,2550.1,2550.0,101.1913969]
[1646971746987,13.01779656,2550.1,2550.0,101.1913969]
[1646971747390,16.01779656,2550.1,2550.0,101.1913969]
[1646971748287,17.51172693,2550.1,2550.0,101.1913969]
[1646971751431,14.51172693,2550.1,2550.0,101.1913969]
[1646971751731,17.51172693,2550.1,2550.0,101.1913969]
[1646971752137,14.51172693,2550.1,2550.0,101.1913969]
[1646971752736,13.51172693,2550.1,2550.0,101.1913969]
[1646971752990,14.51172693,2550.1,2550.0,101.1913969]
[1646971754181,14.31779656,2550.1,2550.0,99.46578397]
[1646971754583,17.51172693,2550.1,2550.0,99.46578397]
[1646971755786,14.51172693,2550.1,2550.0,99.46578397]
[1646971757234,13.49104012,2550.1,2550.0,99.46578397]
[1646971762096,10.54764012,2550.1,2550.0,99.46578397]
[1646971765637,11.54764012,2550.1,2550.0,99.46578397]
[1646971773543,61.54764012,2550.1,2550.0,99.46578397]
[1646971774152,61.54764012,2550.1,2550.0,97.74020937]
[1646971774951,60.54764012,2550.1,2550.0,97.74020937]
[1646971775149,52.07835656,2550.1,2550.0,97.74020937]
[1646971775348,52.07835656,2550.1,2550.0,97.80672278]
[1646971776382,52.37835656,2550.1,2550.0,97.80672278]
[1646971780231,52.37835656,2550.1,2550.0,97.74020937]
[1646971780634,50.7605736,2550.1,2550.0,97.74020937]
[1646971784602,50.7605736,2550.1,2550.0,97.74020937]
[1646971797200,50.75922728,2550.1,2550.0,97.74020937]
[1646971798015,9.73976817,2551.0,2550.2,5.5]
[1646971798016,0.462,2550.3,2550.2,5.5]
[1646971798207,4.27688259,2551.1,2550.3,5.5]
[1646971798208,0.462,2551.1,2550.3,5.5]
[1646971798407,0.47758092,2551.3,2550.8,0.01204694]
[1646971798606,0.01558092,2551.3,2550.8,0.01204694]
[1646971798805,0.46589484,2551.5,2550.8,0.01204694]
[1646971798806,0.462,2551.5,2550.8,0.01204694]
[1646971799007,1.74897969,2552.0,2551.3,5.0]
[1646971799008,0.1537,2551.9,2551.3,5.0]
[1646971799207,0.462,2551.7,2551.3,5.0]
[1646971799406,1.61686147,2551.6,2551.4,4.15678892]
[1646971799605,0.72987591,2552.3,2551.3,2.9390277]
[1646971799606,0.462,2552.0,2551.3,2.9390277]
[1646971799807,0.3,2551.7,2551.3,2.9390277]
[1646971800005,0.1537,2552.2,2551.3,4.1120277]
[1646971800312,0.47553298,2552.0,2551.4,0.08136259]
[1646971800506,2.07874946,2551.9,2551.4,0.08136259]
[1646971800707,1.61674946,2551.8,2551.4,0.08136259]
[1646971800907,2.07874946,2551.8,2551.4,0.08136259]
[1646971801107,1.61674946,2551.7,2551.4,0.08136259]
[1646971801309,0.00401545,2551.7,2551.4,0.08136259]
[1646971801745,1.62075906,2551.7,2551.4,0.08136259]
[1646971802151,0.76601545,2551.7,2551.4,0.08136259]
[1646971802352,1.6168437,2551.6,2551.4,0.08136259]
[1646971802651,0.462,2551.5,2551.1,0.19909767]
[1646971802858,0.762,2551.5,2551.1,0.19909767]
[1646971803853,0.76601537,2551.5,2551.1,0.19909767]
[1646971804753,0.762,2551.5,2551.1,0.19909767]
[1646971805054,0.76601537,2551.5,2551.1,0.19909767]
[1646971805909,0.762,2551.5,2551.1,0.19909767]
[1646971806109,0.76594398,2551.5,2551.1,0.19909767]
[1646971807115,0.762,2551.5,2551.1,0.19909767]
[1646971807315,0.76594398,2551.5,2551.1,0.19909767]
[1646971808416,0.762,2551.5,2551.1,0.19909767]
[1646971808615,0.76594398,2551.5,2551.1,0.19909767]
[1646971809448,0.762,2551.5,2551.1,0.19909767]
[1646971809950,0.76588865,2551.5,2551.1,0.19909767]
[1646971810753,0.762,2551.5,2551.1,0.19909767]
[1646971810951,0.76588865,2551.5,2551.1,0.19909767]
[1646971811152,1.66481353,2551.5,2551.1,0.19909767]
[1646971811356,1.66481353,2551.5,2551.1,0.08612922]
[1646971811652,1.66481353,2551.5,2550.9,1.173]
[1646971811854,1.66092488,2551.5,2550.9,1.173]
[1646971812257,1.66481353,2551.5,2550.9,1.173]
[1646971812856,0.04824611,2551.4,2550.9,1.173]
[1646971813102,0.462,2551.3,2550.9,1.173]
[1646971813299,0.762,2551.3,2550.9,1.173]
[1646971815806,0.762,2551.3,2550.9,2.1528947]
[1646971819465,0.762,2551.3,2550.9,1.173]
[1646971822904,0.76059096,2551.3,2550.9,1.173]
[1646971826552,0.76059096,2551.3,2550.9,3.132795]
[1646971828196,0.76059096,2551.3,2551.0,0.9798915]
[1646971829900,0.76059096,2551.3,2550.7,2.8781]
[1646971829901,5.80301805,2551.2,2550.7,2.8781]
[1646971830101,2.12721825,2551.1,2550.7,2.8781]
[1646971830301,4.14186216,2551.0,2550.5,9.3051]
[1646971830499,0.50669553,2550.9,2550.2,1.30639997]
[1646971830700,0.50669553,2550.9,2550.2,1.1682]
[1646971830701,4.18543176,2550.8,2550.2,1.1682]
[1646971830903,0.51133553,2550.7,2550.2,1.1682]
[1646971831103,0.50915395,2550.6,2550.2,1.1682]
[1646971831303,0.80915395,2550.6,2550.2,1.1682]
[1646971831951,0.762,2550.6,2550.2,1.1682]
[1646971844105,0.762,2550.6,2550.1,10.3216]
[1646971844106,0.762,2550.6,2550.1,7.33]
[1646971844308,0.04758713,2550.4,2550.1,7.33]
[1646971844505,0.04758713,2550.4,2550.0,97.74020937]
[1646971844506,2.07939121,2550.3,2550.0,97.74020937]
[1646971844706,0.04204274,2550.2,2550.0,97.74020937]
[1646971844907,0.462,2550.1,2550.0,97.74020937]
[1646971845307,0.762,2550.1,2550.0,97.74020937]
[1646971846412,1.74259,2550.1,2550.0,97.74020937]
[1646971846875,5.88445216,2550.1,2550.0,97.74020937]
[1646971847074,7.50198435,2550.1,2550.0,88.45164774]
[1646971847275,8.69798435,2550.1,2550.0,88.2344679]
[1646971847472,15.47898435,2550.1,2550.0,86.50897343]
[1646971848277,11.33712219,2550.1,2550.0,86.50897343]
[1646971848476,11.14112219,2550.1,2550.0,86.50897343]
[1646971848876,10.14112219,2550.1,2550.0,86.50897343]
[1646971849676,14.29136309,2550.1,2550.0,86.50897343]
[1646971850897,15.29136309,2550.1,2550.0,86.50897343]
[1646971852105,11.14112219,2550.1,2550.0,86.50897343]
[1646971852303,9.52359,2550.1,2550.0,86.50897343]
[1646971854348,11.14123141,2550.1,2550.0,86.50897343]
[1646971854753,12.19078355,2550.1,2550.0,86.50897343]
[1646971855152,10.57314214,2550.1,2550.0,86.50897343]
[1646971856251,12.1908052,2550.1,2550.0,86.50897343]
[1646971856652,11.14125306,2550.1,2550.0,86.50897343]
[1646971856856,9.52359,2550.1,2550.0,86.50897343]
[1646971859506,11.14123092,2550.1,2550.0,86.50897343]
[1646971859703,9.52359,2550.1,2550.0,86.50897343]
[1646971860703,8.52359,2550.1,2550.0,86.50897343]
[1646971861504,9.52359,2550.1,2550.0,86.50897343]
[1646971861749,9.52359,2550.1,2550.0,86.45897343]
[1646971862754,8.52359,2550.1,2550.0,86.45897343]
[1646971862954,9.52359,2550.1,2550.0,86.45897343]
[1646971867005,9.57068288,2550.1,2550.0,86.45897343]
[1646971871054,11.18829453,2550.1,2550.0,86.45897343]
[1646971871858,8.57068288,2550.1,2550.0,86.45897343]
[1646971872058,9.57068288,2550.1,2550.0,86.45897343]
[1646971872259,8.57068288,2550.1,2550.0,86.45897343]
[1646971872660,8.52359,2550.1,2550.0,86.45897343]
[1646971872866,1.762,2550.1,2550.0,86.45897343]
[1646971873309,0.762,2550.1,2550.0,86.45897343]
[1646971873511,0.462,2550.1,2550.0,86.45897343]
[1646971874912,0.762,2550.1,2550.0,86.45897343]
[1646971876611,0.3,2550.1,2550.0,86.45897343]
[1646971877065,1.28054,2550.2,2550.0,86.45897343]
[1646971877267,0.462,2550.1,2550.0,86.45897343]
[1646971878574,2.07956825,2550.1,2550.0,86.45897343]
[1646971878767,3.27349862,2550.1,2550.0,84.73344995]
[1646971878967,5.50747583,2550.1,2550.0,84.73344995]
[1646971879167,9.48223271,2550.1,2550.0,84.73344995]
[1646971879366,15.26323271,2550.1,2550.0,84.73344995]
[1646971879568,16.08266501,2550.1,2550.0,84.73344995]
[1646971880172,15.62066501,2550.1,2550.0,84.73344995]
[1646971880370,9.83966501,2550.1,2550.0,84.73344995]
[1646971880610,6.86490813,2550.1,2550.0,84.73344995]
[1646971880808,4.63093092,2550.1,2550.0,84.73344995]
[1646971884117,7.63093092,2550.1,2550.0,84.73344995]
[1646971884363,7.63093092,2550.1,2550.0,83.91404995]
[1646971884364,13.87422085,2550.1,2550.0,83.91404995]
[1646971884563,16.84897773,2550.1,2550.0,59.26168987]
[1646971884767,20.86833682,2550.1,2550.0,32.11203868]
[1646971885065,8.9432,2550.0,2549.5,0.0017281]
[1646971885264,6.781,2549.6,2549.4,0.196]
[1646971885466,2.07985818,2549.5,2549.4,0.196]
[1646971885665,2.02985818,2549.5,2549.4,0.196]
[1646971885869,2.32985818,2549.5,2549.4,0.196]
[1646971886467,4.31094818,2549.5,2549.4,0.196]
[1646971886868,4.84894818,2549.5,2549.4,0.196]
[1646971887070,12.07303658,2549.5,2549.4,0.196]
[1646971887269,12.26696695,2549.5,2549.4,0.196]
[1646971888018,12.26696695,2549.5,2548.7,1.2468]
[1646971888019,2.94338,2549.4,2549.3,0.00172824]
[1646971888213,10.48638,2549.4,2549.3,0.00172824]
[1646971888512,11.68031037,2549.4,2549.3,0.00172824]
[1646971888708,14.97679355,2549.4,2549.3,0.00172824]
[1646971888910,0.9811964,2549.3,2548.7,1.2468]
[1646971889111,7.84572663,2549.3,2549.2,0.00172831]
[1646971889311,8.34705677,2549.3,2549.2,0.00172831]
[1646971889512,15.81837769,2549.3,2549.2,0.00172831]
[1646971889912,18.88653995,2549.3,2549.2,0.00172831]
[1646971890116,0.9812223,2549.0,2548.4,1.1366]
[1646971890315,0.462,2548.9,2548.4,1.1366]
[1646971891115,1.44323,2548.9,2548.4,1.1366]
[1646971891316,2.42446,2548.9,2548.4,1.1366]
[1646971891761,1.96252,2548.8,2548.4,1.1366]
[1646971891964,0.462,2548.7,2548.4,1.1366]
[1646971892367,1.74326,2548.7,2548.4,1.0866]
[1646971892764,1.3,2548.5,2548.4,1.088715]
[1646971892964,1.762,2548.5,2548.4,0.002115]
[1646971893568,1.762,2548.5,2548.2,7.33]
[1646971893569,2.74321,2548.5,2548.2,7.33]
[1646971893964,2.74321,2548.5,2548.3,0.00211508]
[1646971894165,1.74321,2548.5,2548.3,0.00211508]
[1646971894365,2.74321,2548.5,2548.3,0.00211508]
[1646971894566,1.74321,2548.5,2548.3,0.00211508]
[1646971894767,1.0,2548.3,2548.2,7.33]
[1646971894966,2.44336,2548.3,2548.2,7.33]
[1646971895167,2.74336,2548.3,2548.2,7.33]
[1646971895603,3.74336,2548.3,2548.2,7.33]
[1646971903644,3.74336,2548.3,2548.2,7.28]
[1646971904648,3.74336,2548.3,2548.1,0.00168691]
[1646971905047,4.91870037,2548.3,2548.1,0.00168691]
[1646971905748,4.91870037,2548.3,2548.0,0.06892426]
[1646971905948,4.91870037,2548.3,2548.1,0.00168694]
[1646971906754,4.91870037,2548.3,2548.0,0.06892426]
[1646971906956,3.93729037,2548.3,2548.0,0.06892426]
[1646971907156,3.93729037,2548.3,2548.1,0.00168694]
[1646971907557,2.44336,2548.3,2548.1,0.00168694]
[1646971907758,1.44336,2548.3,2548.1,0.00168694]
[1646971908158,1.44336,2548.3,2548.0,0.06892426]
[1646971908358,1.44336,2548.3,2548.1,0.00173573]
[1646971908959,1.93729037,2548.3,2548.1,0.00173573]
[1646971909161,1.93729037,2548.3,2548.0,0.06892426]
[1646971909561,1.74336,2548.3,2548.1,0.00173573]
[1646971910362,1.74336,2548.3,2548.0,0.06892426]
[1646971910612,1.74336,2548.3,2548.1,0.00173573]
[1646971911220,1.74336,2548.3,2548.1,0.08799744]
[1646971911222,0.762,2548.3,2548.1,0.08799744]
[1646971911616,0.762,2548.3,2548.1,0.08626171]
[1646971912015,0.762,2548.3,2548.1,0.08798646]
[1646971912218,0.762,2548.3,2548.1,3.96430354]
[1646971912219,0.462,2548.3,2548.1,3.96430354]
[1646971912416,1.0,2548.8,2548.3,0.09029795]
[1646971912616,0.462,2548.7,2548.3,0.09029795]
[1646971913216,0.462,2548.7,2548.4,0.00172451]
[1646971913417,0.462,2548.7,2548.4,1.12630261]
[1646971913616,0.462,2548.7,2548.4,0.00172451]
[1646971913816,0.762,2548.7,2548.4,0.00172451]
[1646971914017,0.762,2548.7,2548.3,0.09029795]
[1646971914260,0.762,2548.7,2548.4,0.00172451]
[1646971914661,1.74308,2548.7,2548.4,0.00172451]
[1646971915260,1.74308,2548.7,2548.1,0.07732869]
[1646971915461,1.74308,2548.7,2548.4,0.00172698]
[1646971916463,1.74308,2548.7,2548.2,0.08422992]
[1646971916664,1.74308,2548.7,2548.4,0.00172698]
[1646971917668,1.74308,2548.7,2548.2,0.08422992]
[1646971917871,1.74308,2548.7,2548.4,0.00172698]
[1646971918815,1.74308,2548.7,2548.2,0.08422992]
[1646971919217,1.74308,2548.7,2548.4,0.00172643]
[1646971919416,0.462,2548.7,2548.4,0.00172643]
[1646971920016,0.462,2548.7,2548.3,0.08011664]
[1646971920419,0.462,2548.7,2548.4,0.98266103]
[1646971920618,0.462,2548.7,2548.6,0.07301944]
[1646971920820,0.762,2548.7,2548.6,0.07301944]
[1646971923269,0.762,2548.7,2548.6,1.18199429]
[1646971923670,0.762,2548.7,2548.6,1.10897485]
[1646971925607,0.762,2548.7,2548.5,0.00172648]
[1646971926007,0.762,2548.7,2548.4,1.9617746]
[1646971926409,0.762,2548.7,2548.5,0.00172649]
[1646971927215,0.762,2548.7,2548.4,1.9617746]
[1646971927414,0.762,2548.7,2548.5,0.00172649]
[1646971928516,0.762,2548.7,2548.4,1.9617746]
[1646971928815,0.762,2548.7,2548.5,0.00172649]
[1646971929563,0.762,2548.7,2548.4,1.9617646]
[1646971929964,0.762,2548.7,2548.5,0.0017265]
[1646971930769,0.762,2548.7,2548.4,0.9809346]
[1646971931168,0.762,2548.7,2548.5,0.0017265]
[1646971931970,0.762,2548.7,2548.4,0.9809346]
[1646971932170,0.762,2548.7,2548.3,1.9616853]
[1646971932371,0.762,2548.7,2548.5,0.0017265]
[1646971933211,0.762,2548.7,2548.2,1.2098]
[1646971933412,1.74307,2548.7,2548.2,1.2098]
[1646971933613,1.74307,2548.7,2548.5,0.0017265]
[1646971934412,1.74307,2548.7,2548.3,0.07873332]
[1646971934612,1.74307,2548.7,2548.5,0.0017265]
[1646971935614,1.74307,2548.7,2548.3,0.07873332]
[1646971936015,1.74307,2548.7,2548.5,0.0017265]
[1646971936785,1.74307,2548.7,2548.3,0.07873332]
[1646971936977,1.74192696,2548.7,2548.3,0.07873332]
[1646971937177,1.74192696,2548.7,2548.5,0.0017265]
[1646971937980,1.74192696,2548.7,2548.3,0.07873332]
[1646971938378,1.74192696,2548.7,2548.5,0.0017265]
[1646971938978,0.76085696,2548.7,2548.5,0.0017265]
[1646971939179,0.76085696,2548.7,2548.2,2.1908357]
[1646971939579,0.76085696,2548.7,2548.5,0.0017265]
[1646971940382,0.76085696,2548.7,2548.2,2.1908357]
[1646971940808,0.76085696,2548.7,2548.5,0.0017265]
[1646971941509,0.76085696,2548.7,2548.4,0.07146361]
[1646971942111,3.86159232,2548.6,2548.2,1.2098]
[1646971942312,0.462,2548.5,2548.2,1.2098]
[1646971942512,0.462,2548.4,2548.2,1.2098]
[1646971942713,0.462,2548.3,2547.8,11.5169121]
[1646971942914,0.462,2548.2,2547.9,0.0898474]
[1646971943118,0.462,2548.1,2547.9,0.0898474]
[1646971943315,0.462,2548.0,2547.9,1.02407275]
[1646971943516,0.462,2548.0,2547.9,0.0898474]
[1646971943715,0.762,2548.0,2547.9,0.0898474]
[1646971946366,0.462,2548.0,2547.9,0.0898474]
[1646971948311,0.05233444,2548.8,2548.1,0.9810151]
[1646971948508,0.462,2548.7,2548.1,0.9810151]
[1646971949311,0.462,2548.7,2548.3,0.00197884]
[1646971949510,0.762,2548.7,2548.3,0.00197884]
[1646971950115,0.762,2548.7,2548.2,0.9810145]
[1646971950314,0.762,2548.7,2548.4,0.0019788]
[1646971951218,0.762,2548.7,2548.2,0.9810145]
[1646971951518,0.762,2548.7,2548.4,0.00197877]
[1646971952557,0.762,2548.7,2548.2,0.9810145]
[1646971952757,0.762,2548.7,2548.4,0.00166546]
[1646971953657,0.762,2548.7,2548.2,0.9810145]
[1646971953862,0.762,2548.7,2548.0,7.4620302]
[1646971954063,0.762,2548.7,2548.4,0.00166546]
[1646971954868,0.762,2548.7,2548.2,0.9810506]
[1646971955070,1.7431,2548.7,2548.4,0.00166546]
[1646971955516,1.0,2548.6,2548.4,0.00166546]
[1646971955717,0.462,2548.5,2548.4,0.00166546]
[1646971956017,0.762,2548.5,2548.0,1.9620302]
[1646971956415,0.762,2548.5,2548.3,0.00173602]
[1646971957319,0.762,2548.5,2548.0,1.9620302]
[1646971957520,0.762,2548.5,2548.3,0.00173606]
[1646971958524,0.762,2548.5,2548.2,0.9810485]
[1646971958921,0.762,2548.5,2548.3,0.00173606]
[1646971959764,0.762,2548.5,2548.2,0.9810485]
[1646971960060,0.762,2548.5,2548.3,0.00172019]
[1646971960960,0.762,2548.5,2548.2,0.9810485]
[1646971961166,0.762,2548.5,2548.3,0.00172019]
[1646971962166,0.762,2548.5,2548.2,0.9810485]
[1646971962368,0.762,2548.5,2548.3,0.00172019]
[1646971963310,0.762,2548.5,2548.0,1.9620302]
[1646971963512,0.762,2548.5,2548.3,0.00172376]
[1646971964513,0.762,2548.5,2548.2,0.9810357]
[1646971964714,0.762,2548.5,2548.3,0.00172376]
[1646971965723,0.762,2548.5,2548.2,0.9810357]
[1646971966022,0.762,2548.5,2548.3,0.00172376]
[1646971966865,0.762,2548.5,2548.2,0.9810357]
[1646971967265,0.762,2548.5,2548.3,0.00172296]
[1646971968165,0.762,2548.5,2548.2,0.9810357]
[1646971968368,0.762,2548.5,2548.3,0.00172296]
[1646971969268,0.762,2548.5,2548.2,0.9810357]
[1646971969668,0.762,2548.5,2548.3,0.00172296]
[1646971970512,0.762,2548.5,2548.2,0.9810357]
[1646971970715,0.762,2548.5,2548.3,0.00172314]
[1646971971814,0.762,2548.5,2548.2,0.9810357]
[1646971972014,0.762,2548.5,2548.3,0.00172314]
[1646971972416,0.76068258,2548.5,2548.3,0.00172314]
[1646971972815,0.76068258,2548.5,2548.2,0.9810357]
[1646971973218,0.76068258,2548.5,2548.3,0.00172314]
[1646971974022,0.76068258,2548.5,2548.2,0.9810357]
[1646971974462,0.76068258,2548.5,2548.3,0.0017231]
[1646971975267,0.76068258,2548.5,2548.0,1.9620302]
[1646971975666,0.76068258,2548.5,2548.0,2.9430202]
[1646971975866,0.462,2548.5,2548.3,0.0017231]
[1646971976569,0.462,2548.5,2548.2,0.07748022]
[1646971976767,1.05391713,2549.1,2548.2,0.07748022]
[1646971976768,0.462,2548.9,2548.3,0.9826873]
[1646971976970,0.05391713,2549.1,2548.5,1.05872098]
[1646971977771,0.51591713,2549.1,2548.5,1.05872098]
[1646971978008,0.462,2549.1,2548.7,0.00172284]
[1646971978209,0.462,2549.1,2548.8,0.9807377]
[1646971979313,0.462,2549.1,2548.8,0.98246046]
[1646971979911,0.462,2549.1,2548.8,1.96314046]
[1646971980111,0.462,2549.1,2548.8,1.9614177]
[1646971980312,0.462,2549.1,2548.8,2.03208625]
[1646971980511,0.462,2549.1,2548.8,2.03380901]
[1646971981213,0.462,2549.1,2548.8,1.05312901]
[1646971981417,0.462,2549.1,2548.8,1.05140625]
[1646971981615,0.3,2549.1,2548.8,1.05312901]
[1646971981870,6.60894002,2549.6,2548.8,1.05312901]
[1646971982069,1.61804652,2549.5,2548.8,1.05312901]
[1646971982266,2.08004652,2549.5,2548.8,1.05312901]
[1646971982467,1.61804652,2549.4,2548.8,1.05312901]
[1646971982668,1.91804652,2549.4,2548.8,1.05140625]
[1646971982966,0.3,2549.4,2548.8,1.05312901]
[1646971983168,1.74281,2549.5,2548.8,1.05312901]
[1646971983367,1.618046,2549.4,2548.8,1.05312901]
[1646971983569,1.918046,2549.4,2548.8,1.05312901]
[1646971983767,0.3,2549.4,2548.8,1.05140625]
[1646971983968,1.74281,2549.5,2548.8,1.05312901]
[1646971984168,1.61804989,2549.4,2548.8,0.07239131]
[1646971984372,0.98087,2549.3,2548.8,0.07239131]
[1646971984569,0.05213131,2549.1,2548.8,0.00172276]
[1646971984768,0.51413131,2549.1,2548.8,0.00172276]
[1646971984969,0.04521885,2549.0,2548.6,1.1883]
[1646971985167,0.462,2548.9,2548.6,1.1883]
[1646971985368,0.762,2548.9,2548.8,0.00172276]
[1646971986208,0.762,2548.9,2548.3,0.196]
[1646971986408,1.74303,2548.9,2548.7,0.0017228]
[1646971987614,5.58997002,2548.9,2548.7,0.0017228]
[1646971987814,5.58997002,2548.9,2548.7,0.00344564]
[1646971987815,3.84694002,2548.8,2548.7,0.00344564]
[1646971988014,0.462,2548.8,2548.7,0.00172284]
[1646971988214,0.762,2548.8,2548.7,0.00172284]
[1646971988614,0.762,2548.8,2548.3,0.196]
[1646971988816,1.98112,2548.7,2548.2,3.163843]
[1646971989016,1.98112,2548.7,2548.6,0.00172287]
[1646971989268,2.44312,2548.7,2548.6,0.00172287]
[1646971989961,2.44312,2548.7,2548.2,1.202]
[1646971989962,1.462,2548.7,2548.2,1.202]
[1646971990261,1.462,2548.7,2548.5,0.00172294]
[1646971991165,1.462,2548.7,2548.2,1.202]
[1646971991365,1.462,2548.7,2548.5,0.00172297]